[Event "*** Titled Tuesday Blitz"]
[Site "Chess.com"]
[Date "2020.04.21"]
[Round "3"]
[White "Aikiigm"]
[Black "Rakesh"]
[Result "1/2-1/2"]
[WhiteElo "2596"]
[BlackElo "2396"]
[TimeControl "180+1"]
[EndTime "10:29:39 PDT"]
[Termination "Game drawn - insufficient material"]

1. e4 {[%clk 0:03:00.9]} 1... c5 {[%clk 0:02:57.8]} 2. Nc3 {[%clk 0:03:00.6]}
2... e6 {[%clk 0:02:57]} 3. Nf3 {[%clk 0:02:59.1]} 3... a6 {[%clk 0:02:57.4]} 4.
a3 {[%clk 0:02:57.6]} 4... b5 {[%clk 0:02:57.6]} 5. d4 {[%clk 0:02:57]} 5...
cxd4 {[%clk 0:02:57.9]} 6. Nxd4 {[%clk 0:02:57.9]} 6... Bb7 {[%clk 0:02:58.3]}
7. Qf3 {[%clk 0:02:56.9]} 7... Nc6 {[%clk 0:02:57.4]} 8. Nxc6 {[%clk 0:02:56.7]}
8... Bxc6 {[%clk 0:02:58.3]} 9. Bd3 {[%clk 0:02:56.4]} 9... Qc7 {[%clk
0:02:58.5]} 10. Bf4 {[%clk 0:02:53.4]} 10... Bd6 {[%clk 0:02:58.4]} 11. Bxd6
{[%clk 0:02:52.5]} 11... Qxd6 {[%clk 0:02:59.3]} 12. O-O-O {[%clk 0:02:51.7]}
12... Qc5 {[%clk 0:02:56.3]} 13. Qg3 {[%clk 0:02:50.3]} 13... Ne7 {[%clk
0:02:40.7]} 14. Qxg7 {[%clk 0:02:42.7]} 14... Rg8 {[%clk 0:02:39.3]} 15. Qxh7
{[%clk 0:02:42.7]} 15... Rxg2 {[%clk 0:02:39.7]} 16. Rd2 {[%clk 0:02:35.6]}
16... Ng6 {[%clk 0:02:16.1]} 17. Qg8+ {[%clk 0:02:33.2]} 17... Ke7 {[%clk
0:02:15.2]} 18. Qg7 {[%clk 0:02:31]} 18... Rxf2 {[%clk 0:02:13.5]} 19. Rxf2
{[%clk 0:02:29.1]} 19... Qxf2 {[%clk 0:02:14.4]} 20. Rf1 {[%clk 0:02:28.5]}
20... Qe3+ {[%clk 0:02:11.5]} 21. Kb1 {[%clk 0:02:28.7]} 21... Rf8 {[%clk
0:02:10.1]} 22. Qf6+ {[%clk 0:02:27]} 22... Ke8 {[%clk 0:02:09.7]} 23. Nd5
{[%clk 0:02:18.7]} 23... exd5 {[%clk 0:01:41.1]} 24. exd5 {[%clk 0:02:17.9]}
24... Ne7 {[%clk 0:01:41.5]} 25. dxc6 {[%clk 0:02:15.7]} 25... Nxc6 {[%clk
0:01:29.5]} 26. Rf4 {[%clk 0:02:11.5]} 26... Qe1+ {[%clk 0:01:26.8]} 27. Ka2
{[%clk 0:02:10.9]} 27... Qe6+ {[%clk 0:01:27.7]} 28. b3 {[%clk 0:02:11]} 28...
Qxf6 {[%clk 0:01:27.2]} 29. Rxf6 {[%clk 0:02:11.9]} 29... Rh8 {[%clk 0:01:27.4]}
30. Rf2 {[%clk 0:02:10.5]} 30... Ne5 {[%clk 0:01:26.7]} 31. Bf5 {[%clk
0:02:09.5]} 31... Ke7 {[%clk 0:01:26]} 32. Kb2 {[%clk 0:02:09.3]} 32... d5
{[%clk 0:01:24.4]} 33. Kc3 {[%clk 0:02:08.4]} 33... Rh4 {[%clk 0:01:21.9]} 34.
h3 {[%clk 0:02:05.9]} 34... Kd6 {[%clk 0:01:16]} 35. Bc8 {[%clk 0:02:00.6]}
35... a5 {[%clk 0:01:14.9]} 36. Rf6+ {[%clk 0:01:59.9]} 36... Kc5 {[%clk
0:01:14.4]} 37. Kb2 {[%clk 0:01:56]} 37... d4 {[%clk 0:00:59]} 38. Rf5 {[%clk
0:01:48]} 38... Kd6 {[%clk 0:00:58.2]} 39. Rf6+ {[%clk 0:01:47.6]} 39... Kc5
{[%clk 0:00:58.3]} 40. Kc1 {[%clk 0:01:33.5]} 40... d3 {[%clk 0:00:55.8]} 41.
cxd3 {[%clk 0:01:33.4]} 41... Nxd3+ {[%clk 0:00:56.7]} 42. Kd2 {[%clk
0:01:32.3]} 42... Ne5 {[%clk 0:00:55.5]} 43. Ke3 {[%clk 0:01:28.6]} 43... a4
{[%clk 0:00:51]} 44. Rf5 {[%clk 0:01:18.1]} 44... Kd6 {[%clk 0:00:41.8]} 45.
bxa4 {[%clk 0:01:14.3]} 45... bxa4 {[%clk 0:00:41.6]} 46. Rf6+ {[%clk
0:01:13.7]} 46... Kc7 {[%clk 0:00:40.5]} 47. Bf5 {[%clk 0:01:10.6]} 47... Nc4+
{[%clk 0:00:36.1]} 48. Kf3 {[%clk 0:01:09.7]} 48... Nxa3 {[%clk 0:00:35.9]} 49.
Rxf7+ {[%clk 0:01:09.9]} 49... Kd6 {[%clk 0:00:33.5]} 50. Ra7 {[%clk 0:01:05.8]}
50... Nb5 {[%clk 0:00:31.2]} 51. Ra6+ {[%clk 0:01:02.5]} 51... Kc5 {[%clk
0:00:28.6]} 52. Bg4 {[%clk 0:00:58.5]} 52... a3 {[%clk 0:00:26.2]} 53. Kg3
{[%clk 0:00:58.7]} 53... Rh7 {[%clk 0:00:24.7]} 54. h4 {[%clk 0:00:58.9]} 54...
Kd5 {[%clk 0:00:15.5]} 55. h5 {[%clk 0:00:58.1]} 55... Ra7 {[%clk 0:00:15.7]}
56. Be6+ {[%clk 0:00:51.5]} 56... Ke5 {[%clk 0:00:13.8]} 57. Rxa7 {[%clk
0:00:51.3]} 57... Nxa7 {[%clk 0:00:14.7]} 58. Ba2 {[%clk 0:00:50.7]} 58... Kf6
{[%clk 0:00:14.4]} 59. Kh4 {[%clk 0:00:50.1]} 59... Nc6 {[%clk 0:00:13.6]} 60.
h6 {[%clk 0:00:50.1]} 60... Kg6 {[%clk 0:00:12.9]} 61. Kg4 {[%clk 0:00:46.8]}
61... Na7 {[%clk 0:00:07.7]} 62. h7 {[%clk 0:00:45.4]} 62... Kxh7 {[%clk
0:00:07.1]} 63. Kf5 {[%clk 0:00:45]} 63... Nb5 {[%clk 0:00:07]} 64. Ke5 {[%clk
0:00:41.9]} 64... Nc3 {[%clk 0:00:07.3]} 65. Bb3 {[%clk 0:00:41.9]} 65... Kg6
{[%clk 0:00:06.9]} 66. Kd4 {[%clk 0:00:40.4]} 66... a2 {[%clk 0:00:04.5]} 67.
Bxa2 {[%clk 0:00:39.1]} 1/2-1/2

[Event "*** Titled Tuesday Blitz"]
[Site "Chess.com"]
[Date "2020.04.21"]
[Round "3"]
[White "Efremov_Vlad"]
[Black "Rap_woyska"]
[Result "0-1"]
[WhiteElo "2143"]
[BlackElo "2361"]
[TimeControl "180+1"]
[EndTime "10:29:41 PDT"]
[Termination "Rap_woyska won on time"]

1. c4 {[%clk 0:03:00.9]} 1... e5 {[%clk 0:02:52]} 2. g3 {[%clk 0:03:00.2]} 2...
Nf6 {[%clk 0:02:51.9]} 3. Bg2 {[%clk 0:02:59.4]} 3... d5 {[%clk 0:02:52.3]} 4.
cxd5 {[%clk 0:02:59.2]} 4... Nxd5 {[%clk 0:02:53.2]} 5. Nc3 {[%clk 0:02:59.1]}
5... Nb6 {[%clk 0:02:52.9]} 6. Nf3 {[%clk 0:02:59.3]} 6... Nc6 {[%clk
0:02:53.1]} 7. O-O {[%clk 0:02:59.5]} 7... Be7 {[%clk 0:02:53.4]} 8. b3 {[%clk
0:02:59.8]} 8... O-O {[%clk 0:02:48.6]} 9. Bb2 {[%clk 0:02:59.6]} 9... Re8
{[%clk 0:02:49.1]} 10. d3 {[%clk 0:02:59]} 10... Bf8 {[%clk 0:02:47.8]} 11. Rc1
{[%clk 0:02:58.1]} 11... Bg4 {[%clk 0:02:39.6]} 12. Ne4 {[%clk 0:02:52.8]} 12...
Nd4 {[%clk 0:02:35.2]} 13. Nxd4 {[%clk 0:02:50.4]} 13... exd4 {[%clk 0:02:36.1]}
14. h3 {[%clk 0:02:42.5]} 14... Bh5 {[%clk 0:02:34.4]} 15. g4 {[%clk 0:02:41.9]}
15... Bg6 {[%clk 0:02:34.6]} 16. Nc5 {[%clk 0:02:41.8]} 16... Bxc5 {[%clk
0:02:35]} 17. Rxc5 {[%clk 0:02:40.8]} 17... c6 {[%clk 0:02:35.5]} 18. Bf3 {[%clk
0:02:20.8]} 18... Qd6 {[%clk 0:02:29.1]} 19. Rc2 {[%clk 0:02:17.9]} 19... Nd7
{[%clk 0:02:22.9]} 20. Rc4 {[%clk 0:02:11.7]} 20... Ne5 {[%clk 0:01:46.7]} 21.
Rxd4 {[%clk 0:02:11.1]} 21... Nxf3+ {[%clk 0:01:47.1]} 22. exf3 {[%clk
0:02:11.4]} 22... Qe7 {[%clk 0:01:29.1]} 23. f4 {[%clk 0:02:03.7]} 23... f6
{[%clk 0:01:18.5]} 24. f5 {[%clk 0:01:57.8]} 24... Bf7 {[%clk 0:01:18]} 25. Re4
{[%clk 0:01:58.1]} 25... Qd6 {[%clk 0:01:17.4]} 26. Rfe1 {[%clk 0:01:57.9]}
26... h6 {[%clk 0:01:05.2]} 27. Rxe8+ {[%clk 0:01:49.2]} 27... Bxe8 {[%clk
0:01:05.3]} 28. Re6 {[%clk 0:01:33.8]} 28... Qd5 {[%clk 0:01:04.4]} 29. Qd2
{[%clk 0:01:11.3]} 29... c5 {[%clk 0:00:59.7]} 30. Re4 {[%clk 0:00:33.9]} 30...
Bc6 {[%clk 0:00:55.3]} 31. f3 {[%clk 0:00:33.7]} 31... Rd8 {[%clk 0:00:50.1]}
32. Re3 {[%clk 0:00:32.2]} 32... Kh7 {[%clk 0:00:35.9]} 33. Kf2 {[%clk
0:00:31.5]} 33... Qd6 {[%clk 0:00:35.8]} 34. Kg2 {[%clk 0:00:29.8]} 34... Qf4
{[%clk 0:00:34.9]} 35. Qe2 {[%clk 0:00:24.8]} 35... h5 {[%clk 0:00:27]} 36. Kg1
{[%clk 0:00:12.6]} 36... h4 {[%clk 0:00:18.9]} 37. Bc1 {[%clk 0:00:09.4]} 37...
Bb5 {[%clk 0:00:14.6]} 38. Kg2 {[%clk 0:00:03.7]} 38... Qg3+ {[%clk 0:00:14.4]}
39. Kf1 {[%clk 0:00:02.3]} 39... Qxh3+ {[%clk 0:00:12.6]} 40. Qg2 {[%clk
0:00:02.9]} 40... Bxd3+ {[%clk 0:00:11.3]} 41. Kg1 {[%clk 0:00:03.2]} 41...
Qxg2+ {[%clk 0:00:10.6]} 42. Kxg2 {[%clk 0:00:03.6]} 42... Bb1 {[%clk
0:00:11.5]} 43. Re7 {[%clk 0:00:02.6]} 43... Bxa2 {[%clk 0:00:08.2]} 44. Be3
{[%clk 0:00:02.7]} 44... b6 {[%clk 0:00:07.6]} 45. Rxa7 {[%clk 0:00:02.6]} 45...
Bxb3 {[%clk 0:00:08]} 46. Rb7 {[%clk 0:00:03.1]} 46... Rd6 {[%clk 0:00:07.2]}
47. g5 {[%clk 0:00:03.4]} 47... Bd5 {[%clk 0:00:07.1]} 48. Rc7 {[%clk
0:00:02.1]} 48... fxg5 {[%clk 0:00:06.9]} 49. Bxg5 {[%clk 0:00:01.8]} 49... Kg8
{[%clk 0:00:04.3]} 50. f6 {[%clk 0:00:02]} 50... gxf6 {[%clk 0:00:05.2]} 51. Bh6
{[%clk 0:00:02.3]} 51... Rd8 {[%clk 0:00:03.8]} 52. Rg7+ {[%clk 0:00:02.2]}
52... Kh8 {[%clk 0:00:03]} 53. Rg4 {[%clk 0:00:01.3]} 53... Rg8 {[%clk
0:00:03.9]} 54. Rxg8+ {[%clk 0:00:01.1]} 54... Kxg8 {[%clk 0:00:04.8]} 0-1

[Event "*** Titled Tuesday Blitz"]
[Site "Chess.com"]
[Date "2020.04.21"]
[Round "3"]
[White "Problematique_99"]
[Black "JakubPulpan"]
[Result "1/2-1/2"]
[WhiteElo "2503"]
[BlackElo "2698"]
[TimeControl "180+1"]
[EndTime "10:29:42 PDT"]
[Termination "Game drawn by agreement"]

1. e4 {[%clk 0:03:00.9]} 1... e5 {[%clk 0:02:59]} 2. Nc3 {[%clk 0:03:00.5]} 2...
Nf6 {[%clk 0:02:49.7]} 3. g3 {[%clk 0:03:00.7]} 3... c6 {[%clk 0:02:48.7]} 4.
Bg2 {[%clk 0:02:56.1]} 4... d5 {[%clk 0:02:47.2]} 5. d3 {[%clk 0:02:56.2]} 5...
dxe4 {[%clk 0:02:46]} 6. dxe4 {[%clk 0:02:52.3]} 6... Qxd1+ {[%clk 0:02:44.2]}
7. Nxd1 {[%clk 0:02:52.6]} 7... h5 {[%clk 0:02:45]} 8. h3 {[%clk 0:02:50.3]}
8... Nbd7 {[%clk 0:02:37]} 9. Ne2 {[%clk 0:02:40.1]} 9... Nc5 {[%clk 0:02:31.8]}
10. Ndc3 {[%clk 0:02:34]} 10... Be6 {[%clk 0:02:31.8]} 11. Be3 {[%clk 0:02:26]}
11... a5 {[%clk 0:02:27.1]} 12. f4 {[%clk 0:02:21.9]} 12... Bc4 {[%clk
0:02:20.7]} 13. b3 {[%clk 0:02:12.1]} 13... Ba6 {[%clk 0:02:17.8]} 14. a4 {[%clk
0:02:00.4]} 14... O-O-O {[%clk 0:02:13.9]} 15. fxe5 {[%clk 0:01:51.6]} 15...
Nfd7 {[%clk 0:02:11.7]} 16. O-O-O {[%clk 0:01:42.2]} 16... Nxe5 {[%clk
0:02:04.1]} 17. Rxd8+ {[%clk 0:01:43.1]} 17... Kxd8 {[%clk 0:02:05]} 18. Rd1+
{[%clk 0:01:35.2]} 18... Kc8 {[%clk 0:02:04.1]} 19. Nd4 {[%clk 0:01:32.1]} 19...
g6 {[%clk 0:01:53]} 20. Bf4 {[%clk 0:01:26.9]} 20... Bh6 {[%clk 0:01:52]} 21.
Kb2 {[%clk 0:01:23.9]} 21... Bxf4 {[%clk 0:01:41.8]} 22. gxf4 {[%clk 0:01:24.8]}
22... Ned7 {[%clk 0:01:42.7]} 23. e5 {[%clk 0:01:21.6]} 23... Re8 {[%clk
0:01:41.7]} 24. Ne4 {[%clk 0:01:12.4]} 24... Nxe4 {[%clk 0:01:41.3]} 25. Bxe4
{[%clk 0:01:13.3]} 25... Nc5 {[%clk 0:01:39.9]} 26. Bf3 {[%clk 0:01:05.8]} 26...
Rd8 {[%clk 0:01:35.6]} 27. Kc3 {[%clk 0:00:54.4]} 27... Kc7 {[%clk 0:01:28.9]}
28. f5 {[%clk 0:00:49.6]} 28... gxf5 {[%clk 0:01:24.1]} 29. Nxf5 {[%clk
0:00:50.5]} 29... Re8 {[%clk 0:01:24.4]} 30. Re1 {[%clk 0:00:40.7]} 30... Rh8
{[%clk 0:00:20.1]} 31. h4 {[%clk 0:00:36]} 31... Ne6 {[%clk 0:00:16]} 32. Nd6
{[%clk 0:00:34.5]} 32... f6 {[%clk 0:00:15.9]} 33. Nf7 {[%clk 0:00:32.9]} 33...
Rh7 {[%clk 0:00:16.8]} 34. exf6 {[%clk 0:00:31.5]} 34... Rxf7 {[%clk 0:00:17.1]}
35. Rxe6 {[%clk 0:00:30.9]} 35... Kd7 {[%clk 0:00:17.9]} 36. Re7+ {[%clk
0:00:28.5]} 36... Rxe7 {[%clk 0:00:16.8]} 37. fxe7 {[%clk 0:00:29.4]} 37... Kxe7
{[%clk 0:00:17.7]} 38. Bxh5 {[%clk 0:00:30]} 38... b6 {[%clk 0:00:18.6]} 39. Bf3
{[%clk 0:00:29.7]} 39... Bb7 {[%clk 0:00:19.3]} 40. Kd4 {[%clk 0:00:27.2]} 40...
Kf6 {[%clk 0:00:19.8]} 41. Ke3 {[%clk 0:00:26.1]} 41... Bc8 {[%clk 0:00:15.6]}
42. Bxc6 {[%clk 0:00:25.2]} 42... Bg4 {[%clk 0:00:16.4]} 43. Be4 {[%clk
0:00:24.3]} 43... Bd1 {[%clk 0:00:16.5]} 44. Kd4 {[%clk 0:00:24.6]} 44... Ke6
{[%clk 0:00:16.7]} 45. Kc4 {[%clk 0:00:19.5]} 45... Kd6 {[%clk 0:00:15.5]} 46.
Bg6 {[%clk 0:00:15.9]} 46... Be2+ {[%clk 0:00:15]} 47. Kd4 {[%clk 0:00:15.1]}
47... Ke6 {[%clk 0:00:15.1]} 48. h5 {[%clk 0:00:14.2]} 48... Kf6 {[%clk
0:00:15.8]} 49. Kd5 {[%clk 0:00:14.4]} 49... b5 {[%clk 0:00:16.1]} 50. axb5
{[%clk 0:00:13.2]} 50... Bxb5 {[%clk 0:00:17]} 51. Kc5 {[%clk 0:00:13.6]} 51...
a4 {[%clk 0:00:17.7]} 52. bxa4 {[%clk 0:00:09.5]} 52... Bxa4 {[%clk 0:00:18.6]}
53. c4 {[%clk 0:00:08.8]} 53... Bb3 {[%clk 0:00:18.9]} 54. Kd4 {[%clk
0:00:08.4]} 54... Bxc4 {[%clk 0:00:19.8]} 55. Kxc4 {[%clk 0:00:09.1]} 55... Kg7
{[%clk 0:00:20.7]} 56. Kd4 {[%clk 0:00:09.1]} 56... Kh8 {[%clk 0:00:21.6]}
1/2-1/2

[Event "*** Titled Tuesday Blitz"]
[Site "Chess.com"]
[Date "2020.04.21"]
[Round "3"]
[White "Mikhail_Biryukov"]
[Black "Sychev_Klementy"]
[Result "1/2-1/2"]
[WhiteElo "2658"]
[BlackElo "2853"]
[TimeControl "180+1"]
[EndTime "10:29:46 PDT"]
[Termination "Game drawn by agreement"]

1. e4 {[%clk 0:03:00.9]} 1... e5 {[%clk 0:02:40.5]} 2. Nf3 {[%clk 0:03:00.2]}
2... Nc6 {[%clk 0:02:39.8]} 3. d4 {[%clk 0:02:58.4]} 3... exd4 {[%clk
0:02:39.6]} 4. Nxd4 {[%clk 0:02:58.6]} 4... Nf6 {[%clk 0:02:40.3]} 5. Nc3 {[%clk
0:02:58]} 5... Bc5 {[%clk 0:02:37.2]} 6. Nxc6 {[%clk 0:02:46.8]} 6... bxc6
{[%clk 0:02:33]} 7. Bd3 {[%clk 0:02:47.1]} 7... O-O {[%clk 0:02:31.8]} 8. O-O
{[%clk 0:02:47.1]} 8... d5 {[%clk 0:02:32.1]} 9. Bg5 {[%clk 0:02:44.8]} 9... Qd6
{[%clk 0:01:34.4]} 10. exd5 {[%clk 0:02:23.7]} 10... cxd5 {[%clk 0:01:32.2]} 11.
Bxf6 {[%clk 0:01:58.9]} 11... Qxf6 {[%clk 0:01:30.5]} 12. Nxd5 {[%clk
0:01:59.4]} 12... Qg5 {[%clk 0:01:14.6]} 13. c4 {[%clk 0:01:23.6]} 13... Rd8
{[%clk 0:01:03.4]} 14. Qc2 {[%clk 0:01:20.3]} 14... h5 {[%clk 0:00:49.7]} 15.
Kh1 {[%clk 0:01:18]} 15... h4 {[%clk 0:00:46.8]} 16. f4 {[%clk 0:01:16.7]} 16...
Qh5 {[%clk 0:00:40.7]} 17. f5 {[%clk 0:01:07.7]} 17... h3 {[%clk 0:00:34.4]} 18.
Be4 {[%clk 0:01:03.9]} 18... Rb8 {[%clk 0:00:25.7]} 19. Rae1 {[%clk 0:00:43.5]}
19... Qg5 {[%clk 0:00:22]} 20. b3 {[%clk 0:00:42.2]} 20... c6 {[%clk 0:00:21.7]}
21. Nf4 {[%clk 0:00:40.8]} 21... hxg2+ {[%clk 0:00:20.4]} 22. Qxg2 {[%clk
0:00:40.3]} 22... Qxg2+ {[%clk 0:00:19.2]} 23. Kxg2 {[%clk 0:00:40.6]} 23... a5
{[%clk 0:00:13.3]} 24. Bxc6 {[%clk 0:00:40.1]} 24... Bxf5 {[%clk 0:00:12.2]} 25.
Nd5 {[%clk 0:00:38.7]} 25... Be6 {[%clk 0:00:11]} 26. Re2 {[%clk 0:00:30.7]}
26... Rbc8 {[%clk 0:00:09.1]} 27. Bb7 {[%clk 0:00:28.6]} 27... Rb8 {[%clk
0:00:09.4]} 28. Bc6 {[%clk 0:00:28.8]} 28... Rd6 {[%clk 0:00:08.6]} 29. Ba4
{[%clk 0:00:27.1]} 29... Bxd5+ {[%clk 0:00:07.8]} 30. cxd5 {[%clk 0:00:27.1]}
30... Rxd5 {[%clk 0:00:08.3]} 31. Rf3 {[%clk 0:00:26.6]} 31... Rbd8 {[%clk
0:00:06.5]} 32. Bb5 {[%clk 0:00:25.4]} 32... Rd2 {[%clk 0:00:05.8]} 33. a4
{[%clk 0:00:19.7]} 33... Rxe2+ {[%clk 0:00:05.5]} 34. Bxe2 {[%clk 0:00:19.8]}
34... g6 {[%clk 0:00:05.6]} 35. Bc4 {[%clk 0:00:19.1]} 35... Rd7 {[%clk
0:00:06]} 36. Rd3 {[%clk 0:00:18.5]} 36... Re7 {[%clk 0:00:05.6]} 37. Rd5 {[%clk
0:00:18.4]} 37... Bb4 {[%clk 0:00:05.6]} 38. Bb5 {[%clk 0:00:16.6]} 38... Kg7
{[%clk 0:00:05.6]} 39. Rd7 {[%clk 0:00:16.8]} 39... Rxd7 {[%clk 0:00:05.5]} 40.
Bxd7 {[%clk 0:00:16.9]} 40... f5 {[%clk 0:00:05.5]} 41. Kf3 {[%clk 0:00:16.9]}
41... Kf6 {[%clk 0:00:05.8]} 42. h3 {[%clk 0:00:17]} 42... Kg5 {[%clk 0:00:06]}
43. Be8 {[%clk 0:00:17.1]} 43... Bd6 {[%clk 0:00:06.2]} 44. Bf7 {[%clk
0:00:17.2]} 44... Kf6 {[%clk 0:00:06.4]} 45. Be8 {[%clk 0:00:17.5]} 45... Be5
{[%clk 0:00:06.8]} 46. Ke2 {[%clk 0:00:15.9]} 46... Bd6 {[%clk 0:00:06.8]} 47.
Kf3 {[%clk 0:00:16]} 47... Bc5 {[%clk 0:00:07.2]} 48. Ke2 {[%clk 0:00:16]} 48...
Bb4 {[%clk 0:00:07.6]} 49. Kf3 {[%clk 0:00:16.1]} 49... g5 {[%clk 0:00:08.1]}
50. Bd7 {[%clk 0:00:15.7]} 50... Kg6 {[%clk 0:00:08.1]} 51. Bc8 {[%clk
0:00:15.9]} 51... Kf6 {[%clk 0:00:07.9]} 52. Bd7 {[%clk 0:00:16.1]} 52... Ke5
{[%clk 0:00:08.2]} 53. Bc8 {[%clk 0:00:16.2]} 53... Bd6 {[%clk 0:00:08.8]} 54.
Bd7 {[%clk 0:00:16.2]} 54... Bc7 {[%clk 0:00:09.1]} 55. Bc8 {[%clk 0:00:16.4]}
55... Bd6 {[%clk 0:00:09.5]} 56. Bd7 {[%clk 0:00:16.6]} 56... Be7 {[%clk
0:00:09.9]} 57. Bc8 {[%clk 0:00:16.8]} 57... f4 {[%clk 0:00:10]} 58. Bd7 {[%clk
0:00:16.5]} 58... Kd4 {[%clk 0:00:10.4]} 59. Be6 {[%clk 0:00:16.5]} 59... Kc3
{[%clk 0:00:10.9]} 60. Bf7 {[%clk 0:00:16.8]} 60... Kb4 {[%clk 0:00:11.2]} 61.
Be6 {[%clk 0:00:17.1]} 61... Kc3 {[%clk 0:00:11.2]} 62. Bf7 {[%clk 0:00:17.4]}
62... Kb4 {[%clk 0:00:11.6]} 1/2-1/2

[Event "*** Titled Tuesday Blitz"]
[Site "Chess.com"]
[Date "2020.04.21"]
[Round "3"]
[White "Playgood28"]
[Black "Oglob71"]
[Result "0-1"]
[WhiteElo "2202"]
[BlackElo "2455"]
[TimeControl "180+1"]
[EndTime "10:29:47 PDT"]
[Termination "Oglob71 won on time"]

1. d4 {[%clk 0:03:00.9]} 1... Nf6 {[%clk 0:02:56.6]} 2. c4 {[%clk 0:03:00.5]}
2... e6 {[%clk 0:02:57]} 3. Nc3 {[%clk 0:03:00.6]} 3... Bb4 {[%clk 0:02:57]} 4.
Qc2 {[%clk 0:03:00.6]} 4... d6 {[%clk 0:02:56.4]} 5. a3 {[%clk 0:03:00]} 5...
Bxc3+ {[%clk 0:02:55.9]} 6. Qxc3 {[%clk 0:03:00.1]} 6... Ne4 {[%clk 0:02:56.4]}
7. Qc2 {[%clk 0:02:59.3]} 7... f5 {[%clk 0:02:56.8]} 8. e3 {[%clk 0:02:58.9]}
8... O-O {[%clk 0:02:55.6]} 9. Nf3 {[%clk 0:02:58.9]} 9... Nc6 {[%clk
0:02:53.7]} 10. Be2 {[%clk 0:02:57.3]} 10... e5 {[%clk 0:02:52.4]} 11. dxe5
{[%clk 0:02:53.3]} 11... dxe5 {[%clk 0:02:51.1]} 12. b4 {[%clk 0:02:51.1]} 12...
Qe7 {[%clk 0:02:51.1]} 13. Bb2 {[%clk 0:02:50.8]} 13... Ng5 {[%clk 0:02:48.7]}
14. O-O {[%clk 0:02:38.9]} 14... Nxf3+ {[%clk 0:02:46]} 15. Bxf3 {[%clk
0:02:37.7]} 15... e4 {[%clk 0:02:45.9]} 16. Be2 {[%clk 0:02:36.7]} 16... Ne5
{[%clk 0:02:46.3]} 17. Bxe5 {[%clk 0:02:32.2]} 17... Qxe5 {[%clk 0:02:45.6]} 18.
c5 {[%clk 0:02:32]} 18... Be6 {[%clk 0:02:44.7]} 19. Rad1 {[%clk 0:02:28.1]}
19... Rad8 {[%clk 0:02:41]} 20. Bc4 {[%clk 0:02:27]} 20... a6 {[%clk 0:02:28.8]}
21. h3 {[%clk 0:02:14.9]} 21... g6 {[%clk 0:02:24.8]} 22. Bxe6+ {[%clk 0:02:13]}
22... Qxe6 {[%clk 0:02:24.3]} 23. Rxd8 {[%clk 0:02:13.3]} 23... Rxd8 {[%clk
0:02:23.8]} 24. Rd1 {[%clk 0:02:13.5]} 24... Rd5 {[%clk 0:02:18.9]} 25. Rd2
{[%clk 0:02:03.7]} 25... c6 {[%clk 0:02:09.6]} 26. Qd1 {[%clk 0:01:52.5]} 26...
Rxd2 {[%clk 0:02:05]} 27. Qxd2 {[%clk 0:01:51.9]} 27... Kf7 {[%clk 0:02:05.6]}
28. g3 {[%clk 0:01:46.3]} 28... h5 {[%clk 0:02:04.9]} 29. h4 {[%clk 0:01:45]}
29... Ke7 {[%clk 0:02:03.1]} 30. Qd4 {[%clk 0:01:40.5]} 30... Qf6 {[%clk
0:02:02]} 31. Qd1 {[%clk 0:01:24.6]} 31... Qe5 {[%clk 0:02:01.9]} 32. Kg2 {[%clk
0:01:22.4]} 32... a5 {[%clk 0:02:01.9]} 33. Qb3 {[%clk 0:01:20.2]} 33... Qe6
{[%clk 0:01:50.9]} 34. Qc3 {[%clk 0:01:16.8]} 34... Qf6 {[%clk 0:01:50.7]} 35.
Qb3 {[%clk 0:01:09.2]} 35... Qe6 {[%clk 0:01:48.8]} 36. Qc3 {[%clk 0:01:08.9]}
36... axb4 {[%clk 0:01:48.5]} 37. axb4 {[%clk 0:01:02.7]} 37... Kd7 {[%clk
0:01:46.2]} 38. Qg7+ {[%clk 0:00:55.2]} 38... Kc8 {[%clk 0:01:46.1]} 39. Qf8+
{[%clk 0:00:53.7]} 39... Kc7 {[%clk 0:01:46.4]} 40. Qh8 {[%clk 0:00:41.2]} 40...
Qe7 {[%clk 0:01:37.2]} 41. Qg8 {[%clk 0:00:39]} 41... Qf6 {[%clk 0:01:35]} 42.
Qc4 {[%clk 0:00:35.8]} 42... Kb8 {[%clk 0:01:23.5]} 43. b5 {[%clk 0:00:35.1]}
43... cxb5 {[%clk 0:01:22.8]} 44. Qxb5 {[%clk 0:00:34.9]} 44... Qc6 {[%clk
0:01:23.3]} 45. Qc4 {[%clk 0:00:34.4]} 45... Ka7 {[%clk 0:01:19]} 46. Qb4 {[%clk
0:00:33.7]} 46... Ka6 {[%clk 0:01:17]} 47. Kh2 {[%clk 0:00:30.8]} 47... Qb5
{[%clk 0:01:17]} 48. Qa3+ {[%clk 0:00:30.1]} 48... Qa5 {[%clk 0:01:17.2]} 49.
Qc1 {[%clk 0:00:23.3]} 49... Qa2 {[%clk 0:01:15.7]} 50. Kg2 {[%clk 0:00:19.6]}
50... Kb5 {[%clk 0:01:15]} 51. Qc3 {[%clk 0:00:19.3]} 51... Qd5 {[%clk
0:01:03.4]} 52. Qf6 {[%clk 0:00:15.2]} 52... Qc6 {[%clk 0:01:03.6]} 53. Qe7
{[%clk 0:00:10.2]} 53... Kc4 {[%clk 0:00:58.8]} 54. Qd6 {[%clk 0:00:07.7]} 54...
Kc3 {[%clk 0:00:56.6]} 55. Qe5+ {[%clk 0:00:06.8]} 55... Kb4 {[%clk 0:00:56.3]}
56. Qd6 {[%clk 0:00:05.4]} 56... Kb5 {[%clk 0:00:54.5]} 57. Qe7 {[%clk
0:00:03.1]} 57... Kc4 {[%clk 0:00:52.8]} 58. Qd6 {[%clk 0:00:03.1]} 58... Qxc5
{[%clk 0:00:51.3]} 59. Qxg6 {[%clk 0:00:02.5]} 59... b5 {[%clk 0:00:51.8]} 60.
Qxh5 {[%clk 0:00:02.7]} 60... b4 {[%clk 0:00:52.2]} 61. Qf7+ {[%clk 0:00:02.4]}
61... Kc3 {[%clk 0:00:51.9]} 62. h5 {[%clk 0:00:02.2]} 62... b3 {[%clk
0:00:52.3]} 63. h6 {[%clk 0:00:02.4]} 63... b2 {[%clk 0:00:50.4]} 64. h7 {[%clk
0:00:02.9]} 64... b1=Q {[%clk 0:00:49.1]} 65. h8=Q+ {[%clk 0:00:02.8]} 65... Kd2
{[%clk 0:00:47.9]} 66. Qd7+ {[%clk 0:00:02.4]} 66... Qd3 {[%clk 0:00:45.5]} 0-1